bitfinex/quotes_ETHUSD_20211001
["timestamp","ask_amount","ask_price","bid_price","bid_amount"]
[1633056310546,0.22980138,2991.2,2991.0,0.86213956]
[1633056310547,0.204,2991.2,2991.0,0.86213956]
[1633056310746,0.003,2991.5,2991.2,0.204]
[1633056310946,0.003,2991.5,2991.3,0.201]
[1633056311156,0.003,2991.5,2991.4,8.53659903]
[1633056311348,0.003,2991.5,2991.4,13.75124903]
[1633056311550,0.003,2991.5,2991.4,27.57725654]
[1633056311949,0.003,2991.5,2991.4,32.59725654]
[1633056312150,0.003,2992.0,2991.5,0.86497165]
[1633056312349,0.003,2992.0,2991.8,0.063438]
[1633056312550,0.003,2992.0,2991.9,6.50757]
[1633056312749,0.003,2992.0,2991.9,8.08720537]
[1633056312950,0.003,2992.0,2991.9,17.08720537]
[1633056313353,0.003,2992.5,2992.0,9.25]
[1633056313552,0.003,2992.5,2992.2,5.01143]
[1633056313754,0.003,2992.5,2992.4,1.49977936]
[1633056313952,0.003,2992.5,2992.4,2.64303809]
[1633056314351,0.003,2992.5,2992.4,3.64303809]
[1633056314751,0.003,2992.5,2992.4,4.93703809]
[1633056314953,0.003,2992.5,2992.4,4.99722209]
[1633056315150,0.003,2992.5,2992.4,10.00873209]
[1633056315351,0.003,2992.5,2992.4,18.00873209]
[1633056315951,0.003,2992.5,2992.4,23.02873209]
[1633056319355,1.603,2992.5,2992.4,23.02873209]
[1633056319755,1.603,2992.5,2992.4,22.08647336]
[1633056319954,1.603,2992.5,2992.4,22.02628936]
[1633056320154,1.603,2992.5,2992.4,13.02628936]
[1633056320556,1.603,2992.5,2992.4,11.73228936]
[1633056321156,1.603,2992.5,2992.4,13.02628936]
[1633056321558,1.553,2992.5,2992.4,14.02628936]
[1633056322557,1.553,2992.5,2992.4,6.221]
[1633056322757,1.553,2992.5,2992.4,5.221]
[1633056323559,1.553,2992.5,2992.4,7.183671]
[1633056324357,1.553,2992.5,2992.4,5.221]
[1633056324965,5.0162,2993.0,2992.4,5.221]
[1633056325362,0.92442046,2992.8,2992.4,5.221]
[1633056325761,1.45242057,2992.9,2992.4,6.80202326]
[1633056325962,1.45242057,2992.9,2992.4,5.221]
[1633056326165,1.45242057,2992.9,2992.5,0.02648919]
[1633056326360,1.45242057,2992.9,2992.6,0.201]
[1633056327165,5.01353,2992.8,2992.6,0.201]
[1633056327362,7.21715024,2992.8,2992.6,0.201]
[1633056327563,7.21715024,2992.8,2992.5,0.02648919]
[1633056327762,7.21715024,2992.8,2992.6,0.201]
[1633056328163,10.55970634,2992.8,2992.6,0.201]
[1633056328564,1.294,2992.7,2992.5,0.02648919]
[1633056328765,9.75563904,2992.6,2992.5,0.02648919]
[1633056329165,7.85563904,2992.6,2992.5,0.02648919]
[1633056329566,0.93738146,2992.1,2991.9,0.201]
[1633056329964,0.93738146,2992.1,2992.0,0.003]
[1633056330166,10.0291315,2992.5,2992.0,0.003]
[1633056330368,1.294,2992.3,2992.0,0.003]
[1633056330566,1.85119266,2992.2,2992.0,0.003]
[1633056330767,14.93461013,2992.1,2992.0,0.003]
[1633056330964,14.93461013,2992.1,2991.3,0.0052]
[1633056330965,48.52613315,2992.1,2991.3,0.0052]
[1633056331166,0.84079543,2991.5,2991.3,0.0052]
[1633056331365,0.201,2991.4,2991.3,0.0052]
[1633056331566,1.495,2991.4,2991.3,0.0052]
[1633056331967,3.40189632,2991.4,2991.3,0.0052]
[1633056332968,34.40189632,2991.4,2991.3,0.0052]
[1633056333567,39.42189632,2991.4,2991.3,0.0052]
[1633056333768,74.71450432,2991.4,2991.3,0.0052]
[1633056333968,74.1063565,2991.4,2991.3,0.0052]
[1633056334370,74.1498635,2991.4,2991.3,0.0052]
[1633056334570,73.6711945,2991.4,2991.3,0.0052]
[1633056334769,73.6778945,2991.4,2991.3,0.0052]
[1633056335172,78.1060305,2991.4,2991.3,0.0052]
[1633056335371,113.47122305,2991.4,2991.3,0.0052]
[1633056335575,113.47122305,2991.4,2991.3,0.0022]
[1633056335576,108.78209405,2991.4,2991.3,0.0022]
[1633056335771,1.06613956,2991.0,2990.5,0.003]
[1633056335971,1.06613956,2991.0,2990.3,0.003]
[1633056335972,3.5463,2990.9,2990.3,0.003]
[1633056336178,2.79826146,2990.8,2990.3,0.003]
[1633056336371,0.201,2990.7,2990.3,0.003]
[1633056336771,0.90200287,2990.5,2990.3,0.003]
[1633056336975,0.201,2990.4,2990.3,0.003]
[1633056337771,1.495,2990.4,2990.3,0.003]
[1633056338053,3.91535314,2990.4,2990.3,0.003]
[1633056338174,31.87852638,2990.4,2990.3,0.003]
[1633056338373,26.747811,2990.4,2990.3,0.003]
[1633056338572,26.747811,2990.4,2990.1,0.006]
[1633056338573,44.53753487,2990.4,2990.1,0.006]
[1633056338779,16.09392252,2990.2,2990.1,0.006]
[1633056338976,0.88335738,2989.5,2989.1,0.006]
[1633056339279,18.22985238,2989.5,2989.1,0.006]
[1633056339475,21.38707705,2989.5,2989.1,0.006]
[1633056339679,21.38372905,2989.5,2989.1,0.006]
[1633056339977,5.5,2989.2,2989.1,0.006]
[1633056340176,10.721,2989.2,2989.1,0.006]
[1633056340377,39.74246,2989.2,2989.1,0.006]
[1633056340774,34.27896665,2989.2,2989.1,0.006]
[1633056341039,21.57296665,2989.2,2989.1,0.006]
[1633056341477,7.85,2989.1,2989.0,0.009]
[1633056341678,5.221,2989.1,2989.0,0.009]
[1633056341878,24.039603,2989.1,2989.0,0.009]
[1633056342079,16.515,2989.1,2989.0,0.009]
[1633056342281,18.728863,2989.1,2989.0,0.009]
[1633056342481,16.515,2989.1,2989.0,0.009]
[1633056342679,15.221,2989.1,2989.0,0.009]
[1633056342880,17.5686398,2989.1,2989.0,0.009]
[1633056343079,9.8626398,2989.1,2989.0,0.009]
[1633056343281,10.8626398,2989.1,2989.0,0.009]
[1633056343679,16.8626398,2989.1,2989.0,0.009]
[1633056344843,33.2070508,2989.1,2989.0,0.009]
[1633056345039,34.24254488,2989.1,2988.7,0.006]
[1633056345241,7.314,2989.0,2988.7,0.006]
[1633056345439,35.30627672,2989.0,2988.7,0.006]
[1633056345841,42.00232672,2989.0,2988.7,0.006]
[1633056346241,42.03882437,2989.0,2988.7,0.006]
[1633056346839,29.03882437,2989.0,2988.7,0.006]
[1633056347052,30.60692437,2989.0,2988.7,0.006]
[1633056348042,30.57042672,2989.0,2988.7,0.006]
[1633056348245,30.57042672,2989.0,2988.9,0.03252286]
[1633056348443,29.00232672,2989.0,2988.9,0.03252286]
[1633056350245,29.00232672,2989.0,2988.9,0.03351784]
[1633056351247,30.01232672,2989.0,2988.9,0.03351784]
[1633056351447,29.00232672,2989.0,2988.9,0.03351784]
[1633056351646,29.03882446,2989.0,2988.9,0.00699498]
[1633056353948,30.79672446,2989.0,2988.9,0.00699498]
[1633056354348,30.76022672,2989.0,2988.9,0.03351784]
[1633056355154,29.46622672,2989.0,2988.9,0.03351784]
[1633056355352,27.70832672,2989.0,2988.9,0.03351784]
[1633056355950,29.55282672,2989.0,2988.9,0.03351784]
[1633056357156,29.58932455,2989.0,2988.9,0.00699498]
[1633056357353,27.74482455,2989.0,2988.9,0.00699498]
[1633056357754,26.95354783,2989.0,2988.9,0.00699498]
[1633056357955,11.93354783,2989.0,2988.9,0.00699498]
[1633056358355,7.93354783,2989.0,2988.9,0.00699498]
[1633056358953,2.07719059,2989.0,2988.9,0.00699498]
[1633056359356,1.07719059,2989.0,2988.9,0.00699498]
[1633056359956,6.06088276,2989.0,2988.9,0.03351784]
[1633056360358,1.04069276,2989.0,2988.9,0.03351784]
[1633056360756,11.201,2989.0,2988.9,0.03351784]
[1633056360958,16.22109,2989.0,2988.9,0.03351784]
[1633056361359,6.22109,2989.0,2988.9,0.03351784]
[1633056362363,44.02687653,2989.0,2988.9,0.03351784]
[1633056362564,44.02687653,2989.0,2987.8,0.006]
[1633056362565,3.84788026,2988.0,2987.8,0.006]
[1633056362764,3.11868026,2988.0,2987.8,0.006]
[1633056362968,8.32033283,2988.0,2987.8,0.006]
[1633056363164,40.223958,2988.0,2987.8,0.006]
[1633056363364,9.2,2987.9,2987.6,0.006]
[1633056363564,9.2,2987.9,2986.4,0.006]
[1633056363565,10.98789396,2987.7,2986.4,0.006]
[1633056363764,9.2,2987.4,2987.2,0.00123822]
[1633056363965,6.25,2987.2,2986.4,0.006]
[1633056364163,0.028769,2987.0,2986.4,0.006]
[1633056364365,2.18665128,2987.0,2986.4,0.006]
[1633056364565,37.83690489,2987.0,2986.4,0.006]
[1633056364763,41.63485989,2987.0,2986.4,0.006]
[1633056364963,41.63485989,2987.0,2986.5,0.86022328]
[1633056364964,34.45796389,2987.0,2986.5,0.86022328]
[1633056365165,34.45796389,2987.0,2986.5,0.009]
[1633056365166,24.00704189,2987.0,2986.5,0.009]
[1633056365570,14.00704189,2987.0,2986.5,0.009]
[1633056365765,23.33569989,2987.0,2986.5,0.009]
[1633056365965,31.63898289,2987.0,2986.5,0.009]
[1633056366167,32.70155289,2987.0,2986.5,0.009]
[1633056366366,5.0258,2986.9,2986.5,0.009]
[1633056366564,28.390163,2986.9,2986.5,0.009]
[1633056366766,26.469314,2986.9,2986.5,0.009]
[1633056367069,9.206,2986.8,2986.0,0.009]
[1633056367267,5.02,2986.4,2986.0,0.009]
[1633056367469,12.44385,2986.4,2986.0,0.009]
[1633056367670,67.151544,2986.4,2986.0,0.009]
[1633056367866,67.23384155,2986.4,2986.0,0.009]
[1633056368069,72.02210929,2986.4,2986.0,0.009]
[1633056368267,68.76287686,2986.4,2986.0,0.009]
[1633056368467,60.98834686,2986.4,2986.0,0.009]
[1633056368666,77.50042486,2986.4,2986.0,0.009]
[1633056368868,64.03567286,2986.4,2986.0,0.009]
[1633056369068,60.98834686,2986.4,2986.0,0.009]
[1633056369467,56.49351657,2986.4,2986.0,0.009]
[1633056369668,0.25066657,2986.4,2986.0,0.009]
[1633056370467,2.7949206,2986.4,2986.0,0.009]
[1633056370669,1.68869933,2987.0,2986.0,0.009]
[1633056370670,3.34967,2986.8,2986.0,0.009]
[1633056370867,6.69962,2986.6,2986.5,0.003]
[1633056371068,0.201,2986.6,2986.5,0.003]
[1633056371470,1.56907968,2986.4,2986.0,0.009]
[1633056371669,1.56907968,2986.4,2986.0,0.88033094]
[1633056373472,1.56907968,2986.4,2986.3,1.3]
[1633056373674,1.60718582,2986.4,2986.3,1.3]
[1633056374074,0.003,2987.0,2986.4,4.65]
[1633056374275,0.003,2987.0,2986.8,0.71066015]
[1633056375072,0.003,2987.0,2986.9,1.294]
[1633056376475,0.003,2987.0,2986.9,1.3253266]
[1633056377077,0.003,2987.0,2986.9,0.0313266]
[1633056377277,0.003,2987.0,2986.9,1.3253266]
[1633056377878,0.003,2987.0,2986.9,1.3834426]
[1633056378278,0.003,2987.0,2986.9,2.3834426]
[1633056378481,0.003,2987.0,2986.9,0.0894426]
[1633056378879,0.003,2987.0,2986.9,0.0313266]
[1633056379079,0.003,2987.0,2986.8,0.71066015]
[1633056379279,0.0220732,2987.0,2986.8,0.71066015]
[1633056379478,0.0220732,2987.0,2986.9,1.294]
[1633056380278,0.0220732,2987.0,2986.8,0.71066015]
[1633056381479,1.6220732,2987.0,2986.8,0.71066015]
[1633056381880,1.603,2987.0,2986.8,0.71066015]
[1633056382080,1.603,2987.0,2986.9,0.03245858]
[1633056384685,1.6220733,2987.0,2986.9,0.00112932]
[1633056385885,0.003,2987.5,2987.0,9.28768031]
[1633056386153,0.003,2987.5,2987.4,0.078558]
[1633056386350,0.003,2987.5,2987.4,0.279558]
[1633056386549,0.003,2987.5,2987.4,1.279558]
[1633056386952,0.003,2987.5,2987.4,4.75100536]
[1633056387350,0.003,2987.5,2987.4,4.79184195]
[1633056388352,1.30088026,2988.0,2987.4,4.79184195]
[1633056388553,1.30088026,2988.0,2987.4,3.49784195]
[1633056388752,1.30088026,2988.0,2987.9,9.219076]
[1633056388955,1.30088026,2988.0,2987.9,11.48744688]
[1633056388956,8.026e-05,2988.0,2987.9,11.48744688]
[1633056389154,8.026e-05,2988.0,2987.9,1.270076]
[1633056389354,8.026e-05,2988.0,2987.9,6.289336]
[1633056389753,8.026e-05,2988.0,2987.9,7.583336]
[1633056390154,8.026e-05,2988.0,2987.9,9.13097985]
[1633056390354,0.01821481,2988.0,2987.9,9.13097985]
[1633056390555,0.01821481,2988.0,2987.9,11.1460923]
[1633056390955,0.003,2988.5,2988.0,0.01808519]
[1633056391157,0.003,2988.5,2988.4,0.97797152]
[1633056391357,0.88635738,2989.5,2988.4,8.04989544]
[1633056391561,0.88635738,2989.5,2988.9,0.065887]
[1633056391758,0.88635738,2989.5,2988.9,0.266887]
[1633056391959,0.88635738,2989.5,2988.9,2.26952907]
[1633056392357,0.88635738,2989.5,2988.9,5.83439899]
[1633056392556,0.88635738,2989.5,2988.9,5.54039899]
[1633056392757,0.88635738,2989.5,2988.9,3.53775692]
[1633056392958,0.88635738,2989.5,2988.9,3.58758089]
[1633056393357,0.88635738,2989.5,2988.9,4.88158089]
[1633056393557,0.88635738,2989.5,2989.0,1.0]
[1633056393858,0.88635738,2989.5,2989.1,2.00133161]
[1633056394459,0.88635738,2989.5,2989.4,9.98711991]
[1633056394664,0.88635738,2989.5,2989.4,6.05468991]
[1633056394859,0.88635738,2989.5,2989.4,8.52317786]
[1633056395258,0.88635738,2989.5,2989.4,16.52317786]
[1633056395460,0.88635738,2989.5,2989.4,17.81717786]
[1633056396163,0.88635738,2989.5,2989.4,16.52317786]
[1633056396358,0.88635738,2989.5,2989.4,8.52317786]
[1633056396561,0.88635738,2989.5,2989.4,17.81717786]
[1633056396760,0.003,2990.5,2989.5,10.03335738]
[1633056396963,0.003,2990.5,2989.7,5.01646]
[1633056397161,0.003,2990.5,2989.6,7.88961]
[1633056397162,0.003,2990.5,2989.8,0.201]
[1633056397761,0.003,2990.5,2989.9,2.32114546]
[1633056397961,0.003,2990.5,2989.9,3.52214546]
[1633056398162,0.003,2990.5,2989.9,2.52214546]
[1633056398360,0.003,2990.5,2989.9,3.52214546]
[1633056398764,0.89161342,2990.4,2989.9,8.53839546]
[1633056398961,0.89161342,2990.4,2989.9,7.7561427]
[1633056399164,0.89161342,2990.4,2989.9,1.201]
[1633056399362,0.89161342,2990.4,2989.9,0.201]
[1633056400361,0.89161342,2990.4,2989.9,1.76719896]
[1633056401365,0.89161342,2990.4,2989.6,1.0]
[1633056401564,1.7078,2990.1,2989.5,0.88335738]
[1633056401963,0.7981,2990.2,2989.5,0.88335738]
[1633056402163,0.7981,2990.2,2989.7,0.94631969]
[1633056402362,0.7981,2990.2,2989.9,1.704715]
[1633056403165,1.49336296,2990.5,2989.9,1.704715]
[1633056403366,0.003,2990.5,2989.9,1.704715]
[1633056403764,0.84484036,2990.5,2989.9,1.704715]
[1633056404367,1.87667566,2990.4,2989.9,1.704715]
[1633056405164,0.84484036,2990.5,2989.9,1.704715]
[1633056405965,0.84484036,2990.5,2989.7,0.94631969]
[1633056406566,2.37588933,2990.4,2989.7,0.94631969]
[1633056406765,0.84484036,2990.5,2989.7,0.94631969]
[1633056406970,0.84484036,2990.5,2989.7,2.47663399]
[1633056407170,0.003,2990.5,2989.7,2.47663399]
[1633056407968,1.97359849,2990.1,2989.7,2.47663399]
[1633056408768,0.77176446,2990.5,2989.7,2.47663399]
[1633056408972,0.003,2990.5,2989.7,2.47663399]
[1633056409170,0.003,2990.5,2989.8,0.0497734]
[1633056409769,1.81856673,2990.0,2989.8,0.0497734]
[1633056410170,1.294,2989.9,2989.8,0.0497734]
[1633056410369,1.294,2989.9,2989.5,0.88335738]
[1633056410571,1.81856673,2990.0,2989.5,0.88335738]
[1633056410971,5.01917,2989.8,2989.5,0.88335738]
[1633056411171,0.71940777,2989.7,2989.5,0.88335738]
[1633056411770,0.71539775,2989.7,2989.5,0.88335738]
[1633056412372,1.294,2989.6,2989.5,0.88335738]
[1633056412572,1.81856673,2990.0,2989.5,0.88335738]
[1633056412974,0.003,2990.0,2989.5,2.57220223]
[1633056413575,0.003,2990.0,2989.9,0.97053413]
[1633056414175,0.003,2990.0,2989.8,5.01721]
[1633056414375,0.003,2990.0,2989.6,3.344771]
[1633056414778,0.003,2990.0,2989.7,0.02651488]
[1633056415179,0.003,2990.0,2989.8,0.98062966]
[1633056417777,0.003,2990.0,2989.8,5.99783966]
[1633056417979,0.003,2990.0,2989.8,5.01721]
[1633056418180,0.003,2990.0,2989.7,0.02651488]
[1633056419048,0.003,2990.0,2989.8,0.87646809]
[1633056419586,0.003,2990.0,2989.8,1.07746809]
[1633056419787,0.003,2990.0,2989.8,2.07746809]
[1633056419988,0.003,2990.0,2989.9,10.444]
[1633056420184,0.003,2990.5,2989.9,18.645]
[1633056420383,0.003,2990.5,2990.3,0.062417]
[1633056420584,0.003,2990.5,2990.4,1.04288574]
[1633056421383,0.03754373,2990.5,2990.4,1.04288574]
[1633056422045,0.03754373,2990.5,2990.4,0.84188574]
[1633056422385,0.03754373,2990.5,2990.4,5.01535]
[1633056422791,1.53254373,2990.5,2989.5,0.88635738]
[1633056422988,0.028769,2990.1,2989.5,0.88635738]
[1633056423189,0.77461662,2990.0,2989.5,0.88635738]
[1633056423588,0.77461662,2990.0,2988.9,9.07316873]
[1633056423589,1.76971476,2989.5,2988.9,0.003]
[1633056423787,1.294,2989.2,2988.9,0.003]
[1633056423987,2.62898218,2989.1,2988.8,0.003]
[1633056424186,2.62898218,2989.1,2988.4,0.006]
[1633056424187,5.201,2989.1,2988.4,0.006]
[1633056424386,5.201,2989.1,2988.3,0.006]
[1633056424387,5.02095,2988.7,2988.3,0.006]
[1633056424586,0.91657485,2988.4,2988.3,0.006]
[1633056424786,0.201,2988.4,2988.3,0.006]
[1633056425050,0.201,2988.4,2988.1,1.5937051]
[1633056425191,0.201,2988.4,2988.2,0.006]
[1633056425590,0.201,2988.4,2988.0,0.009]
[1633056425791,6.17761824,2988.4,2988.0,0.009]
[1633056425992,2.39902491,2988.3,2988.0,0.009]
[1633056426190,0.201,2988.2,2987.8,2.01717982]
[1633056426589,0.201,2988.2,2987.9,0.009]
[1633056426790,0.0344621,2988.1,2987.9,0.009]
[1633056426989,1.6302621,2988.1,2987.9,0.009]
[1633056427592,1.6302621,2988.1,2987.7,0.84812516]
[1633056427991,1.6302621,2988.1,2987.8,0.009]
[1633056428191,1.6302621,2988.1,2987.9,1.51682774]
[1633056428590,1.6302621,2988.1,2988.0,0.009]
[1633056429392,1.6302621,2988.1,2987.8,0.009]
[1633056430395,1.6302621,2988.1,2987.8,1.50349033]
[1633056430795,1.6302621,2988.1,2987.9,0.009]
[1633056432398,1.6302621,2988.1,2987.8,0.009]
[1633056433001,1.6302621,2988.1,2987.9,1.697544]
[1633056433402,1.6302621,2988.1,2988.0,0.009]
[1633056435200,3.2302621,2988.1,2988.0,0.009]
[1633056436599,3.1302621,2988.1,2988.0,0.009]
[1633056437704,24.1654,2989.3,2988.1,1.11824874]
[1633056437902,0.201,2988.9,2988.5,0.062879]
[1633056438105,0.201,2988.9,2988.6,1.54608824]
[1633056438304,0.201,2988.9,2988.6,1.54908824]
[1633056438504,0.201,2988.9,2988.7,0.003]
[1633056438702,244.70034139,2989.4,2988.7,0.003]
[1633056438703,203.201,2989.3,2988.7,0.003]
[1633056439108,203.0,2989.2,2988.7,0.003]
[1633056439305,1.41776961,2989.1,2988.7,0.003]
[1633056439504,203.0,2989.2,2988.7,0.003]
[1633056439706,0.201,2989.3,2988.7,0.003]
[1633056439707,244.73213576,2989.1,2988.7,0.003]
[1633056439904,244.0,2989.1,2988.7,0.003]
[1633056440103,205.0,2989.0,2988.7,0.003]
[1633056440504,1.87247496,2989.0,2988.8,0.02890688]
[1633056440706,78.0,2988.9,2988.8,0.02890688]
[1633056440904,1.87247496,2989.0,2988.9,0.003]
[1633056441106,1.87247496,2989.0,2988.8,0.02890688]
[1633056441107,151.0,2988.9,2988.8,0.03190688]
[1633056441305,1.87247496,2989.0,2988.8,0.03190688]
[1633056441507,114.0,2988.9,2988.8,0.03190688]
[1633056441706,114.0,2988.9,2988.8,0.02890688]
[1633056441905,193.0,2989.4,2988.8,0.03190688]
[1633056442108,96.0,2988.9,2988.6,1.00756879]
[1633056442306,173.0,2989.3,2988.6,1.00756879]
[1633056442504,13.55807214,2989.5,2988.6,2.00756879]
[1633056442505,208.0,2989.2,2988.6,2.00756879]
[1633056442705,1.6,2989.0,2988.6,2.00756879]
[1633056443507,122.6,2989.0,2988.6,2.00756879]
[1633056443914,206.0,2988.9,2988.6,1.00756879]
[1633056444106,206.0,2988.9,2988.6,2.00756879]
[1633056445109,231.0,2989.4,2988.6,2.00756879]
[1633056445309,0.7783035,2989.3,2988.6,2.00756879]
[1633056445508,223.0,2989.4,2988.6,7.02623879]
[1633056445911,182.0,2989.3,2988.7,0.02652242]
[1633056446365,219.0,2989.4,2989.0,0.73126291]
[1633056446566,219.0,2989.4,2989.0,5.01802]
[1633056446765,2.65907214,2989.5,2988.9,0.201]
[1633056447766,0.88262305,2989.4,2989.0,1.76312044]
[1633056448968,2.65907214,2989.5,2989.0,1.76312044]
[1633056449371,2.65907214,2989.5,2989.0,1.26312044]
[1633056449973,6.97980884,2988.8,2988.7,0.02652242]
[1633056450170,6.97980884,2988.8,2988.5,0.003]
[1633056450171,7.7,2988.7,2988.5,0.003]
[1633056450371,11.60309089,2988.6,2988.2,0.003]
[1633056450570,0.201,2988.5,2988.2,0.003]
[1633056450770,101.044444,2988.5,2988.2,0.003]
[1633056450970,10.42582781,2988.4,2988.2,0.003]
[1633056451175,66.351,2988.3,2988.2,0.003]
[1633056451573,121.826734,2988.3,2988.2,0.003]
[1633056451771,122.155073,2988.3,2988.2,0.003]
[1633056452173,123.449073,2988.3,2988.2,0.003]
[1633056452374,114.912473,2988.3,2988.2,0.003]
[1633056452574,120.48195712,2988.3,2988.2,0.003]
[1633056452774,118.64593912,2988.3,2988.2,0.003]
[1633056453376,69.26537512,2988.3,2988.2,0.003]
[1633056453575,71.34262212,2988.3,2988.2,0.003]
[1633056454176,69.50660412,2988.3,2988.2,0.003]
[1633056454374,28.89353512,2988.3,2988.2,0.003]
[1633056454578,16.89353512,2988.3,2988.2,0.003]
[1633056455577,18.34597212,2988.3,2988.2,0.003]
[1633056455978,21.69637012,2988.3,2988.2,0.003]
[1633056456381,21.69637012,2988.3,2988.1,1.11045045]
[1633056456580,0.003,2988.2,2988.1,1.11045045]
[1633056456780,6.9366,2988.2,2988.1,1.11045045]
[1633056457982,6.98155119,2988.2,2988.1,1.11045045]
[1633056458781,12.00411119,2988.2,2988.1,1.11045045]
[1633056460182,18.95618519,2988.2,2988.1,1.11045045]
[1633056460582,20.50729919,2988.2,2988.1,1.11045045]
[1633056460783,17.15690119,2988.2,2988.1,1.11045045]
[1633056461186,0.64994955,2988.1,2987.5,0.006]
[1633056461489,0.02430765,2987.6,2987.5,0.006]
[1633056461686,0.02430765,2987.6,2987.2,0.006]
[1633056461687,9.153,2987.5,2987.2,0.006]
[1633056461885,0.02587606,2987.3,2986.8,0.006]
[1633056462085,0.02578563,2987.0,2986.8,0.006]
[1633056462285,1.94063265,2986.9,2986.3,0.006]
[1633056462485,11.5648901,2986.8,2986.3,0.006]
[1633056462685,14.96842077,2986.8,2986.3,0.006]
[1633056462885,111.60416377,2986.8,2986.3,0.006]
[1633056463085,114.35773377,2986.8,2986.3,0.006]
[1633056463288,88.96263367,2986.8,2986.3,0.006]
[1633056463484,96.73819787,2986.8,2986.3,0.006]
[1633056463685,91.39381087,2986.8,2986.3,0.006]
[1633056463884,90.80388787,2986.8,2986.3,0.006]
[1633056464087,84.02271587,2986.8,2986.3,0.006]
[1633056464284,83.66061987,2986.8,2986.3,0.006]
[1633056464485,84.78025987,2986.8,2986.3,0.006]
[1633056464684,85.59807687,2986.8,2986.3,0.006]
[1633056464889,84.74674287,2986.8,2986.3,0.006]
[1633056465287,85.51100287,2986.8,2986.3,0.006]
[1633056465487,113.54460287,2986.8,2986.3,0.006]
[1633056466488,111.22003587,2986.8,2986.3,0.006]
[1633056466690,110.53267887,2986.8,2986.3,0.006]
[1633056466888,31.91383987,2986.8,2986.3,0.006]
[1633056467089,37.01556987,2986.8,2986.3,0.006]
[1633056467289,35.54414387,2986.8,2986.3,0.006]
[1633056467490,109.41555087,2986.8,2986.3,0.006]
[1633056467689,110.00209587,2986.8,2986.3,0.006]
[1633056467889,109.86801087,2986.8,2986.3,0.006]
[1633056468288,110.57189787,2986.8,2986.3,0.006]
[1633056468488,113.54460287,2986.8,2986.3,0.006]
[1633056469294,113.35456587,2986.8,2986.3,0.006]
[1633056469489,34.28740287,2986.8,2986.3,0.006]
[1633056469689,113.54460287,2986.8,2986.3,0.006]
[1633056469889,110.31176387,2986.8,2986.3,0.006]
[1633056470090,17.4725102,2986.8,2986.3,0.006]
[1633056470290,0.2459062,2986.8,2986.3,0.006]
[1633056470690,33.2459062,2986.8,2986.3,0.006]
[1633056471290,33.2459062,2986.8,2986.4,1.82830688]
[1633056471490,33.201,2986.8,2986.4,1.82830688]
[1633056471689,26.201,2986.8,2986.4,1.82830688]
[1633056472091,6.201,2986.8,2986.4,0.006]
[1633056473092,6.201,2986.8,2986.4,1.76384714]
[1633056473291,6.201,2986.8,2986.5,0.96690206]
[1633056473892,6.501,2986.8,2986.5,0.96690206]
[1633056474891,6.501,2986.8,2986.5,0.009]
[1633056475694,6.501,2986.8,2986.7,1.3]
[1633056475695,0.3,2986.8,2986.7,1.3]
[1633056475893,0.3,2986.8,2986.7,0.006]
[1633056476294,0.3,2986.8,2986.7,1.5054115]
[1633056476894,0.3,2986.8,2986.7,2.7994115]
[1633056478096,0.3,2986.8,2986.7,1.3]
[1633056478297,0.3,2986.8,2986.7,1.2]
[1633056478495,0.3,2986.8,2986.5,0.009]
[1633056478695,0.3,2986.8,2986.7,1.294]
[1633056478895,0.3,2986.8,2986.7,1.194]
[1633056479097,5.02383,2986.7,2986.6,1.74764159]
[1633056479298,0.3,2986.8,2986.6,0.006]
[1633056479899,0.3,2986.8,2986.7,1.294]
[1633056481497,0.3,2986.8,2986.7,3.1380136]
[1633056486699,0.3,2986.8,2986.6,0.93982954]
[1633056487302,0.3,2986.8,2986.7,0.00116086]
[1633056487702,0.3,2986.8,2986.7,1.95924665]
[1633056489303,0.35397723,2986.8,2986.7,1.95924665]
[1633056489905,0.35397723,2986.8,2986.7,0.00116086]
[1633056491105,1.33016117,2986.8,2986.7,0.00116086]
[1633056492303,1.33016117,2986.8,2986.5,0.00834468]
[1633056492504,5.02355,2986.7,2986.5,0.00834468]
[1633056493907,0.35397723,2986.8,2986.7,9.30001416]
[1633056494108,7.723e-05,2986.8,2986.7,11.07816116]
[1633056494310,7.723e-05,2986.8,2986.7,11.30328984]
[1633056494506,7.723e-05,2986.8,2986.7,30.68328984]
[1633056494707,0.02702731,2986.8,2986.7,35.70512984]
[1633056494908,0.003,2987.5,2987.1,3.3471622]
[1633056495109,0.003,2987.5,2987.3,0.065204]
[1633056495312,0.003,2987.5,2987.3,0.266204]
[1633056495710,0.003,2988.0,2987.4,1.85379369]
[1633056495910,0.003,2988.0,2987.8,0.062827]
[1633056496112,0.003,2988.0,2987.9,10.595]
[1633056496509,0.003,2988.0,2987.9,21.94528485]
[1633056496909,0.003,2988.0,2987.9,12.84528485]
[1633056497173,0.003,2988.0,2987.9,37.24454485]
[1633056499975,0.003,2988.0,2987.9,11.55128485]
[1633056500176,0.02113394,2988.0,2987.9,4.84528485]
[1633056500579,0.02113394,2988.0,2987.9,3.55128485]
[1633056502578,0.02113394,2988.0,2987.9,3.57972369]
[1633056502579,0.003,2988.0,2987.9,3.57972369]
[1633056503182,0.303,2988.0,2987.9,3.57972369]
[1633056504981,0.003,2988.0,2987.9,22.95972369]
[1633056505783,0.003,2988.0,2987.9,22.93128485]
[1633056505981,0.02113423,2988.0,2987.9,22.93128485]
[1633056507981,0.003,2988.0,2987.9,22.95972369]
[1633056508181,0.003,2988.0,2987.9,24.24982569]
[1633056508384,0.003,2988.0,2987.9,32.24982569]